Cogmind - Beta 17 @@@ ROGUE MODE // 2026.08.15 @ 21:16:02 Player: Mingebag Result: Destroyed by D-53 Grenadier with Mini Grenade Launcher Performance ------------- Evolutions (0) 0 Regions Visited (2) 400 Robots Destroyed (23) 115 Value Destroyed (488) 488 Prototype IDs (2) 40 Alien Tech Used (0) 0 Bonus (-13) -13 TOTAL SCORE: 1030 Bonus ------- Friendly Fire -13 Cogmind --------- Core Integrity 0/250 Matter 240/300 Energy 250/250 System Corruption 3% Temperature Cool (0) Movement Treading (160) Location -10/Mines Parts ------- > --- POWER (1) -------- Ion Engine > --- PROPULSION (2) --- Improved Treads Improved Treads > --- UTILITY (2) ------ Large Storage Unit Structural Scanner > --- WEAPON (2) ------- Particle Gun Grenade Launcher > --- INVENTORY (15) --- Light Ion Engine Light Nuclear Core Light Nuclear Core Light Treads Improved Treads Improved Treads Improved Treads Flight Unit Flight Unit Signal Interpreter Hacking Suite Medium Laser Light Assault Rifle Light Assault Rifle Mace Peak State ------------ > --- POWER ------------ Ion Engine > --- PROPULSION ------- Improved Treads Improved Treads > --- UTILITY ---------- Large Storage Unit Structural Scanner > --- WEAPON ----------- Medium Laser Particle Gun > --- INVENTORY -------- Light Ion Engine Improved Ion Engine Light Nuclear Core Light Treads Improved Treads Improved Treads Improved Treads Flight Unit Flight Unit Signal Interpreter Hacking Suite Light Assault Rifle Grenade Launcher Mace [Rating: 12] Favorites ----------- Power Light Ion Engine Engine Light Ion Engine Propulsion Improved Treads Treads Improved Treads Utility Large Storage Unit Device Structural Scanner Storage Large Storage Unit Weapon Assault Rifle Energy Gun Small Laser Ballistic Gun Assault Rifle Launcher Grenade Launcher Build | -11 -10 -10 ------- Run | Yrd Mat Min Slots Evolved . | . . . Power . | . . . Propulsion . | . . . Utility . | . . . Weapon . | . . . Parts Attached 21 | 6 11 4 Power 2 | 1 1 . Engine 2 | 1 1 . Core . | . . . Reactor . | . . . Propulsion 6 | 2 4 . Treads 6 | 2 4 . Leg . | . . . Wheel . | . . . Hover . | . . . Flight . | . . . Utility 5 | 1 4 . Device 2 | . 2 . Storage 3 | 1 2 . Processor . | . . . Hackware . | . . . Protection . | . . . Artifact . | . . . Weapon 8 | 2 2 4 Energy Gun 4 | 1 1 2 Energy Cannon . | . . . Ballistic Gun 3 | 1 1 1 Ballistic Cannon . | . . . Launcher 1 | . . 1 Special Weapon . | . . . Impact Weapon . | . . . Slashing Weapon . | . . . Piercing Weapon . | . . . Special Melee Weapon . | . . . Unidentified Prototypes . | . . . Parts Lost 4 | . 3 1 Power 1 | . 1 . Propulsion . | . . . Utility 1 | . 1 . Weapon 2 | . 1 1 Highest Loss Streak 2 | . 2 1 To Critical Strikes . | . . . Average Backups 10 | 2 10 15 Power 2 | . 2 3 Propulsion 5 | 1 5 6 Utility 1 | . 1 2 Weapon 1 | . 1 4 Tool/Special . | . . . Unused Backups 17 | . 6 11 Power 7 | . 3 4 Propulsion 5 | . 2 3 Utility 2 | . . 2 Weapon 3 | . 1 2 Tool/Special . | . . . Average Slot Usage (%) 97 | . 97 98 Engine 13 | . 13 14 Treads 28 | . 28 28 Device 12 | . 12 14 Storage 14 | . 14 14 Energy Gun 14 | . 13 20 Ballistic Gun 12 | . 14 3 Peak Build Rating 12 | 6 11 12 Average Rating 10 | 4 10 11 On Entrance 5 | . 6 11 Avg Prop Armor Cover (%) . | . . . Naked Turns . | . . . Heaviest Build 32 | 12 29 32 Greatest Support 46 | 40 46 46 Greatest Overweight (x) 3 | 3 . . Average Overweight (x) . | . . . Largest Inventory Capacity 15 | 8 15 15 Average Capacity 13 | 7 13 15 Most Carried 15 | 4 15 15 Average Carried 10 | 2 10 14 Final Capacity 15 | 8 15 15 Final Carried 15 | 4 15 15 Class Distribution -------------------- 100% | Mutant Dominant Class ---------------- Mutant | -10/Materials Mutant | -10/Mines Resources | -11 -10 -10 ----------- Run | Yrd Mat Min Matter Collected 616 | 206 369 41 Remotely . | . . . Salvage Created 687 | . 595 92 Parts 38 | . 33 5 Haulers Intercepted 2 | . 2 . Recyclers Shooed 1 | . . 1 Parts Field Recycled . | . . . Retrieved Matter . | . . . Parts Self-Destructed . | . . . Prevented . | . . . Parts Restored . | . . . Kills | -11 -10 -10 ------- Run | Yrd Mat Min Combat Hostiles Destroyed 20 | . 14 6 Guns 16 | . 14 2 AOE 4 | . . 4 Classes Destroyed 6 | . 5 1 Worker 3 | . 3 . Hauler 2 | . 2 . Operator 2 | . 2 . Swarmer 6 | . 6 . Grunt 10 | . 8 2 Assembled 4 | . . 4 Best Kill Streak 4 | . 4 4 Combat Bots Only 4 | . 3 4 Max Kills in Single Turn 2 | . 2 2 Gunslinging . | . . . Exploded 2 | . . 2 Melee . | . . . Uniques/NPCs Destroyed . | . . . Combat | -11 -10 -10 -------- Run | Yrd Mat Min Hostile Shots Fired 105 | . 77 28 Missed 23 | . 17 6 Hits 82 | . 60 22 Projectile 82 | . 60 22 AOE 1 | . . 1 Damage Taken 1037 | . 654 383 Core 251 | . 135 116 Absorbed by Shields . | . . . Core Remaining (%) 100 | 100 . . Volleys Fired 75 | . 62 13 Largest 2 | . 2 2 Hottest 115 | . 70 115 Shots Fired 138 | . 117 21 Gun 133 | . 117 16 Cannon . | . . . Launcher 5 | . . 5 Special . | . . . Kinetic 66 | . 62 4 Thermal 67 | . 55 12 Explosive 5 | . . 5 Electromagnetic . | . . . Robot Hit Streak 20 | . 20 6 Robot Miss Streak 3 | . 3 2 Penetration Max . | . . . Secondary Targets 1 | . 1 . Max Gunslinging Chain 1 | . 1 . Shots Hit Robots 89 | . 78 11 Core Hits 54 | . 34 20 Critical Kills 1 | . 1 . Critical Parts Destroyed 1 | . 1 . Critical Strikes 6 | . 5 1 Burn 4 | . 3 1 Destroy 2 | . 2 . Melee Attacks . | . . . Impact . | . . . Slashing . | . . . Piercing . | . . . Sneak Attacks . | . . . Combat Hostiles . | . . . Follow-up Attacks . | . . . Damage Inflicted 1529 | . 1018 511 Guns 1122 | . 987 135 Cannons . | . . . Explosions 405 | . 31 374 Melee . | . . . Ramming 2 | . . 2 Kinetic 572 | . 553 19 Thermal 550 | . 434 116 Explosive 405 | . 31 374 Electromagnetic . | . . . Impact . | . . . Slashing . | . . . Piercing . | . . . Highest Corruption 3 | . 1 3 Average Corruption 1 | . 1 2 Corruption Purged . | . . . Corruption Blocked . | . . . Effects 10 | . 9 1 Message Errors 1 | . 1 . Matter Fused 5 | . 5 . Energy Discharges 2 | . 1 1 Data Loss (minor) 2 | . 2 . Overload Shots . | . . . Overflow Damage 36 | . . 36 Projectiles . | . . . Explosions 36 | . . 36 Melee . | . . . Knockbacks . | . . . Impact . | . . . Kinetic . | . . . Secondary . | . . . Self-Inflicted Damage . | . . . Shots . | . . . Rammed 1 | . . 1 Targets Rammed 1 | . . 1 Kicked . | . . . Crushed . | . . . Highest Temperature 261 | . 174 261 Average Temperature 65 | . 54 106 Received Heat Transfer 369 | . 273 96 Effects 3 | . . 3 Interference 3 | . . 3 Siege Activations . | . . . Martial Activations . | . . . Shielding Activations . | . . . Robots Disrupted . | . . . Combat Hostiles . | . . . Robots Corrupted . | . . . Combat Hostiles . | . . . Parts Fried . | . . . Impact Corruptions . | . . . Robots Melted . | . . . Combat Hostiles . | . . . Parts Melted 2 | . 2 . Heat Transferred 1841 | . 1434 407 Parts Sabotaged . | . . . Parts Stolen . | . . . Parts Stripped . | . . . Power Chain Reactions . | . . . Alert | -11 -10 -10 ------- Run | Yrd Mat Min Maximum Alert Level . | . . . Low Security (%) 100 | 100 100 100 Level 1 . | . . . Level 2 . | . . . Level 3 . | . . . Level 4 . | . . . Level 5 . | . . . High Security . | . . . Max Security . | . . . Peak Influence 137 | . 137 30 Initial 4 | . . 4 Average 29 | . 34 9 Influence Increases 531 | . 437 94 Destroy 0b10 Robot/C 320 | . 280 40 Destroy 0b10 Robot/NC 35 | . 35 . Destroy Leader 74 | . 64 10 Successful Hack 24 | . 24 . Disable Machine 15 | . 15 . Destroy Structure 48 | . 19 29 Lose Combat Pursuer 15 | . . 15 Influence Decreases 522 | . 425 97 Entered New Map 8 | . . 8 Time Decay 480 | . 395 85 Lost Part 34 | . 30 4 Squads Dispatched 3 | . 3 . Investigation 1 | . 1 . Extermination . | . . . Reinforcement 2 | . 2 . Assault . | . . . Garrison . | . . . Intercept . | . . . Searches Triggered . | . . . Construction Impeded . | . . . Haulers Reinforced . | . . . Active Scanning Responses . | . . . Cargo Convoy Interrupts . | . . . Stealth | -11 -10 -10 --------- Run | Yrd Mat Min Distress Signals 1 | . 1 . Communications Jammed . | . . . Distress Signals . | . . . Times Spotted 50 | . 26 24 Peak Tracking Total 9 | . 4 9 Tactical Retreats 1 | . . 1 Traps | -11 -10 -10 ------- Run | Yrd Mat Min Traps Triggered 2 | . 2 . Indirectly . | . . . Trap Hack Attempts . | . . . Triggered . | . . . Disarmed . | . . . Reprogrammed . | . . . Reused . | . . . Traps Extracted . | . . . Installed . | . . . Triggered . | . . . Machines | -11 -10 -10 ---------- Run | Yrd Mat Min Machines Disabled 1 | . 1 . Max in Single Turn 1 | . 1 . Machines Repaired . | . . . Machines Dismantled . | . . . Machines Sabotaged . | . . . Overloaded Fab Kills . | . . . Hacking | -11 -10 -10 --------- Run | Yrd Mat Min Machines Accessed 4 | . 4 . Terminals 4 | . 4 . Fabricators . | . . . Repair Stations . | . . . Recycling Units . | . . . Scanalyzers . | . . . Garrison Access . | . . . Total Hacks 12 | . 12 . Successful 7 | . 7 . Failed 5 | . 5 . Catastrophic . | . . . Database Lockouts . | . . . Manual 4 | . 4 . Terminals 12 | . 12 . Fabricators . | . . . Repair Stations . | . . . Recycling Units . | . . . Scanalyzers . | . . . Garrison Access . | . . . Terminal Hacks 6 | . 6 . Prototype ID Bank 1 | . 1 . Emergency Access Points 1 | . 1 . Terminal Index 1 | . 1 . Transport Status 1 | . 1 . Recall Investigation 1 | . 1 . Registered Components 1 | . 1 . Fabricator Hacks . | . . . Repair Station Hacks . | . . . Recycling Unit Hacks . | . . . Scanalyzer . | . . . Garrison Access Hacks . | . . . Unauthorized Hacks 1 | . 1 . Terminals 1 | . 1 . Operators 1 | . 1 . Fabricators . | . . . Repair Stations . | . . . Recycling Units . | . . . Scanalyzers . | . . . Garrison Access . | . . . Data Cores Recovered . | . . . Used . | . . . Hacking Detections 2 | . 2 . Full Trace Events . | . . . Feedback Events . | . . . Feedback Blocked . | . . . Robot Schematics Acquired . | . . . Robots Built . | . . . Authchips . | . . . Time . | . . . Total Robot Build Rating . | . . . Part Schematics Acquired . | . . . Parts Built . | . . . Authchips . | . . . Time . | . . . Total Part Build Rating . | . . . Part Studies Acquired . | . . . Parts Repaired . | . . . Time . | . . . Parts Recycled . | . . . Recycled Matter . | . . . Retrieved Matter . | . . . Retrieved Components . | . . . Parts Scanalyzed . | . . . Part Schematics Acquired . | . . . Parts Damaged . | . . . Bothacking | -11 -10 -10 ------------ Run | Yrd Mat Min Used RIF Installer . | . . . Robots Hacked . | . . . Non-combat . | . . . Combat . | . . . Robot Hacks Applied . | . . . Relay Couplers Released . | . . . Fabnet Peak Effective % . | . . . Robots Rewired . | . . . Allies Hacked . | . . . Hacks Repelled . | . . . Allies | -11 -10 -10 -------- Run | Yrd Mat Min Total Allies . | . . . Largest Group . | . . . Highest-Rated Group . | . . . Highest-Rated Ally . | . . . Total Orders . | . . . Ally Attacks . | . . . Total Damage . | . . . Kills . | . . . Allies Corrupted . | . . . Allies Melted . | . . . Intel | -11 -10 -10 ------- Run | Yrd Mat Min Active Infowar (turns) 1640 | . 1360 280 Terrain 394 | . 394 . Structural 1246 | . 966 280 Robot Analysis Total . | . . . Derelict Logs Recovered . | . . . Drone Launches . | . . . Drone Recoveries . | . . . Exploration | -11 -10 -10 ------------- Run | Yrd Mat Min Turns Passed 1909 | 94 1535 280 Spaces Moved 962 | 53 768 141 Core 22 | 22 . . Treads 940 | 31 768 141 Legs . | . . . Wheels . | . . . Hover . | . . . Flight . | . . . Fastest Speed 50 | 50 160 160 Average Speed 159 | 155 160 160 Slowest Speed 200 | 200 160 160 Overloaded Moves . | . . . Propulsion Burnouts . | . . . Robots Hopped . | . . . Potential Cave-ins . | . . . Cave-ins Triggered . | . . . Exploration Rate (%) 42 | 3 91 33 Regions Visited 2 Branch Regions 1 Pre-discovered Areas . | . . . Known Exits Taken . | . . . Unknown Exits Taken 2 | 1 1 . Scrap Searched 1 | . . 1 Spaces Dug . | . . . Terrain Destroyed 60 | . 19 41 Melee . | . . . Projectile . | . . . AOE 60 | . 19 41 Terrain Rammed . | . . . Walls Destroyed . | . . . Machines Disabled . | . . . Actions | -11 -10 -10 --------- Run | Yrd Mat Min Total 1195 | 62 959 174 Wait 99 | . 91 8 Move 960 | 52 767 141 Hop . | . . . Pick Up 24 | 4 17 3 Fast Attach 10 | 6 3 1 Attach 2 | . 1 1 Detach . | . . . Swap 10 | . 7 3 Drop 14 | . 11 3 Fire 75 | . 62 13 Melee . | . . . Ram . | . . . Kick . | . . . Crush 1 | . . 1 Escape Stasis . | . . . Rewire . | . . . Trap . | . . . Miscellaneous . | . . . Route ------- -11/Scrapyard -10/Materials (discovered 5 exits: [*Mat x3] / [*Min x2]) -10/Mines History --------- Turn | Location | Event 37 | -11/Scrapyard | Discovered new exit (range 16) 95 | -11/Scrapyard | Entered Materials 178 | -10/Materials | Discovered new exit (range 16) 312 | -10/Materials | Build established: Mutant 371 | -10/Materials | Discovered new exit (range 10) 590 | -10/Materials | Discovered new exit (range 9) 1133 | -10/Materials | Discovered new exit (range 11) 1393 | -10/Materials | Core integrity fell below 50% 1428 | -10/Materials | Discovered new exit (range 15) 1630 | -10/Materials | Entered Mines 1644 | -10/Mines | Joined a pair of Derelicts in attacking an 0b10 outpost 1753 | -10/Mines | Core integrity fell below 20% 1873 | -10/Mines | Assembled infested the area 1878 | -10/Mines | Assisted by a Guerilla fighting off Assembled 1910 | -10/Mines | Destroyed by D-53 Grenadier with Mini Grenade Launcher Last Messages --------------- 01887_ as-02017 destroyed. 01889_ The unstable cave ceiling collapses. 01889_ HV Slug penetrates Wall. 01890_ Destroyed Asb. F-torch. 01890_ as-83336 destroyed. 01890_ as-65192 destroyed. 01891_ HV Slug penetrates as-17048. 01891_ as-17048 suffers critical hit (Destroy). 01891_ as-17048 destroyed. 01893_ as-03842 suffers critical hit (Destroy). 01893_ as-03842 destroyed. 01894_ as-50787 destroyed. 01894_ as-13323 destroyed. 01894_ 54-0RB(h) destroyed. 01894_ as-67567 destroyed. 01894_ as-60962 destroyed. 01894_ as-17119 destroyed. 01896_ as-90880 destroyed. 01900_ as-55068 destroyed. 01910_ The unstable cave ceiling collapses. Map ----- +----------------------------------------------------+ | ????######## ###??######?????????????????? | | ??????????### # ####### ###?????????????????? | | ??????????##### ## ###### ##?????????????????? | | ???????????######## #### ###????????????????? | | ?????????????######### #### ###????????????????? | | ?????????????????##### #### ##????????????????? | | ????????????????????## #### ##????????????????? | | ???????????????????###%### ###???????????????? | | ??????????????????#### ###???????????????? | | ??????????????????### ##???????????????? | | ??????????????????## #####????????????? | | ?????????????????### ########??????????? | | ?????????########### ## #######???????? | | ?????????########## #### % #####???????? | | ?????????## *= ! #### ]% ##??????? | | ?????????## =%[ #### ! t # ??????? | | ?????????## ### #### ?????? | | ??????##### #### ###### % ?????? | | ??????##### ############ d ??????? | | ??????## ########??## #??????? | | ??????## ##????????## % #??????? | | ??????## ######????????### #??????? | | ??????## ######???????#### ;# # #??????? | | ??????## ##????????###### # ???????? | | ??????## ##????????##### # # ???????? | | ????#### ###??????### @ ##### ???????? | | ????#### ###??????## ##### # ?????????? | | ????## ##??????## ## ?????????? | | ????## ##??????### ####### ????????????? | | ????## ##??????##### ######???????????????? | | ????## ##???????##### ####??????????????????? | | ????## ##?????????#########???????????????????? | | ????## ##??????????#######????????????????????? | | ????########?????????????????????????????????????? | | ????########?????????????????????????????????????? | | ?????????????????????????????????????????????????? | | ?????????????????????????????????????????????????? | | | | | | | | | | | | | | | | | | | | | | | | | | | +----------------------------------------------------+ Best States ------------- Heat Dissipation 25 Energy Generation 10 Energy Capacity 250 Matter Stores 300 Matter Capacity 300 Sight Range 16 Terrain Scan Range 14 Terrain Scan Density 10 Evasion (%) 40 Recoil Reduction 2 Item Schematics ----------------- None Robot Schematics ------------------ None Fabricated ------------ Nothing Repaired ---------- Nothing Studied --------- None Alien Tech Used ----------------- None Achievements -------------- True Hacker Challenges ------------ None Game ------ Seed NetworkedBoltWings Manual? 0 Play Time 00:22:31 Cumulative 23.0 hours Start 2026.08.15 @ 20:53:54 End 2026.08.15 @ 21:16:02 Sessions 1 Manual Loads 0 Difficulty Rogue Special Mode None Game No. 18 Rogue 18 Adventurer 0 Explorer 0 Win Type - Total 0 Types 0/0/0/0/0/0/0/0/0/0 Lore% 11 Gallery% 16 Achievement% 17 Wizard Run 0 Options --------- Layout 1 ASCII 0 Keyboard 0 Movement Mouse Keybinds 0 Fullscreen 1 Font 24/Smallcaps Map View 50x35 Zoom Use 0% Tactical HUD 1 Map Filters NONE Filters NONE Steam 1 RUN: 4ddb4010-a9bf-4ce5-ab18-2d5e44ba6899